bitfinex-derivatives/quotes_BNBF0:USTF0_20250116
["timestamp","ask_amount","ask_price","bid_price","bid_amount"]
[1737019671291,0.28296147,706.81,705.51,0.26032265]
[1737019671491,0.28296147,706.81,705.52,0.26032483]
[1737019676292,0.28296147,706.81,705.38,0.28353511]
[1737019676496,0.28296147,706.81,705.39,0.26032688]
[1737019676695,0.28296147,706.81,705.39,0.54385797]
[1737019676898,0.28296147,706.81,705.4,0.26032688]
[1737019677193,0.28296147,706.81,705.41,0.26032665]
[1737019677392,0.28296147,706.81,705.4,0.26032665]
[1737019677594,0.28296147,706.81,705.41,0.26032685]
[1737019677795,0.28296147,706.81,705.39,0.28353109]
[1737019677992,0.28296147,706.81,705.4,0.26032672]
[1737019678799,0.28296147,706.81,705.39,0.28353109]
[1737019678992,0.28296147,706.81,705.4,0.26032752]
[1737019679899,0.28296147,706.81,705.41,0.26032603]
[1737019680094,0.28296147,706.81,705.42,0.26032603]
[1737019680292,0.28296147,706.81,705.39,0.28353109]
[1737019680491,0.28296147,706.81,705.4,0.26032618]
[1737019681799,0.28296147,706.81,705.39,0.28353109]
[1737019681994,0.28296147,706.81,705.4,0.26032448]
[1737019683100,1.05209625,706.79,705.4,0.26032448]
[1737019683995,1.05209625,706.78,705.39,0.28353109]
[1737019684195,1.05209625,706.78,705.4,0.26034509]
[1737019684599,0.28297748,706.77,705.41,0.26034452]
[1737019684902,1.05209625,706.75,705.42,0.26034452]
[1737019685101,1.05209625,706.75,705.43,0.26034452]
[1737019685303,1.05209625,706.75,705.44,0.26034452]
[1737019685504,1.05209625,706.75,705.39,0.28353109]
[1737019685801,1.05209625,706.75,705.4,0.26034759]
[1737019686201,1.05209625,706.7,705.4,0.26034759]
[1737019686904,1.05209625,706.71,705.4,0.26034759]
[1737019687395,1.05209625,706.71,705.41,0.26033691]
[1737019687595,1.05209625,706.71,705.42,0.26033691]
[1737019687801,1.05209625,706.68,705.43,0.26033691]
[1737019688001,1.05209625,706.68,705.44,0.26034422]
[1737019688196,1.05209625,706.68,705.45,0.26034422]
[1737019688400,1.05209625,706.68,705.46,0.26034422]
[1737019688601,1.05209625,706.68,705.47,0.26034422]
[1737019688802,1.05209625,706.67,705.48,0.26034422]
[1737019689097,1.05209625,706.67,705.49,0.26034422]
[1737019689299,1.05209625,706.67,705.5,0.26034422]
[1737019689499,1.05209625,706.67,705.4,1.05753982]
[1737019689701,1.05209625,706.67,705.41,0.26034346]
[1737019690100,0.28297748,706.77,705.4,1.05753982]
[1737019690101,1.05209625,706.65,705.4,1.05753982]
[1737019690402,1.05209625,706.65,705.41,0.26034138]
[1737019691001,1.05209625,706.63,705.43,1.05753982]
[1737019691196,1.05209625,706.63,705.44,0.26034138]
[1737019692200,1.05209625,706.63,705.43,0.26034138]
[1737019692502,1.05209625,706.63,705.44,0.26034138]
[1737019692701,1.05209625,706.63,705.45,0.26034138]
[1737019692899,1.05209625,706.63,705.46,0.26034374]
[1737019693206,1.05209625,706.63,705.43,0.26034374]
[1737019693403,1.05209625,706.63,705.44,0.26034374]
[1737019693606,1.05209625,706.63,705.45,0.26034374]
[1737019693903,1.05209625,706.63,705.42,1.05753982]
[1737019694204,1.05209625,706.63,705.43,0.26034365]
[1737019694500,1.05209625,706.7,705.43,0.26034365]
[1737019694703,1.05209625,706.7,705.44,0.26034365]
[1737019694905,1.05209625,706.7,705.39,0.28353109]
[1737019695105,1.05209625,706.7,705.4,0.26034698]
[1737019695302,1.05209625,706.71,705.4,0.26034698]
[1737019695699,1.05209625,706.71,705.41,0.26034522]
[1737019695900,1.05209625,706.71,705.42,0.26034522]
[1737019696105,1.05209625,706.71,705.43,0.26034522]
[1737019696301,1.05209625,706.72,705.4,0.26034522]
[1737019696500,1.05209625,706.72,705.41,0.26034318]
[1737019696700,1.05209625,706.72,705.42,0.26034318]
[1737019696906,1.05209625,706.72,705.39,0.28353109]
[1737019697099,1.05209625,706.72,705.4,0.26034946]
[1737019698508,1.05209625,706.69,705.41,0.26034791]
[1737019698806,1.05209625,706.69,705.42,0.26034791]
[1737019699000,1.05209625,706.69,705.43,0.26034791]
[1737019699201,1.05209625,706.69,705.44,0.26034791]
[1737019699507,1.05209625,706.69,705.45,0.26034791]
[1737019699807,1.05209625,706.7,705.39,0.28353109]
[1737019700000,1.05209625,706.7,705.4,0.2603453]
[1737019701305,1.05209625,706.7,705.41,0.26034771]
[1737019701509,1.05209625,706.7,705.42,0.26034771]
[1737019701701,1.05209625,706.7,705.43,0.26034771]
[1737019701907,1.05209625,706.7,705.44,0.26034771]
[1737019702105,1.05209625,706.7,705.45,0.26034771]
[1737019702307,1.05209625,706.7,705.39,0.28353109]
[1737019702507,1.05209625,706.7,705.4,0.26034401]
[1737019704306,1.05209625,706.6,705.43,1.05753982]
[1737019705409,0.28297748,706.77,705.39,0.28353109]
[1737019705410,1.05209625,706.74,705.39,0.28353109]
[1737019705609,1.05209625,706.74,705.4,0.26034824]
[1737019706206,1.05209625,706.73,705.4,0.26034824]
[1737019706614,1.05209625,706.73,705.39,0.28353109]
[1737019707411,1.05209625,706.71,705.39,0.28353109]
[1737019708310,1.05209625,706.68,705.39,0.28353109]
[1737019709110,1.05209625,706.76,705.39,0.28353109]
[1737019710207,1.05209625,706.74,705.39,0.28353109]
[1737019711413,1.05209625,706.76,705.39,0.28353109]
[1737019712618,0.28297748,706.77,705.39,0.28353109]
[1737019722625,1.05209625,706.7,705.39,0.28353109]
[1737019722823,0.28300952,706.69,705.39,0.28353109]
[1737019723920,1.05209625,706.68,705.39,0.28353109]
[1737019724320,0.28301753,706.67,705.39,0.28353109]
[1737019724923,1.05209625,706.66,705.39,0.28353109]
[1737019725126,0.28302554,706.65,705.39,0.28353109]
[1737019727225,1.05209625,706.61,705.39,0.28353109]
[1737019727427,0.28304557,706.6,705.39,0.28353109]
[1737019730626,1.33514182,706.6,705.39,0.28353109]
[1737019732925,1.05209625,706.55,705.39,0.28353109]
[1737019733323,0.2830696,706.54,705.39,0.28353109]
[1737019733728,1.33516585,706.54,705.39,0.28353109]
[1737019734427,0.28307361,706.53,705.39,0.28353109]
[1737019742532,1.05209625,706.52,705.39,0.28353109]
[1737019743132,0.28308162,706.51,705.39,0.28353109]
[1737019745036,1.33517787,706.51,705.03,1.05753982]
[1737019745238,1.33517787,706.51,705.04,0.26048124]
[1737019745637,1.33517787,706.51,705.03,1.05753982]
[1737019745837,1.05209625,706.47,704.85,1.05753982]
[1737019746037,0.28310166,706.46,704.86,0.5442272]
[1737019746238,0.28310166,706.46,704.87,0.26048292]
[1737019746642,0.28310166,706.46,704.88,0.28373623]
[1737019747137,0.28310166,706.46,704.89,0.26048327]
[1737019747643,1.05209625,706.41,704.9,1.341268]
[1737019747843,1.05209625,706.41,704.91,0.54420743]
[1737019748043,1.05209625,706.41,704.92,0.5442034]
[1737019748237,1.05209625,706.41,704.93,0.54419938]
[1737019748443,0.2831257,706.4,704.94,0.54419535]
[1737019748642,0.2831257,706.4,704.9,1.05753982]
[1737019748643,0.2831257,706.4,704.95,0.54419133]
[1737019748945,1.05209625,706.36,704.96,0.5441873]
[1737019749143,1.05209625,706.36,704.97,0.26048327]
[1737019749738,1.05209625,706.36,704.98,0.26049198]
[1737019749943,1.05209625,706.37,704.99,0.26049198]
[1737019750137,1.05209625,706.37,705.0,0.26049198]
[1737019750340,0.28314174,706.36,705.01,0.26049198]
[1737019750539,0.28314174,706.36,705.02,0.26049198]
[1737019750738,0.28314174,706.36,705.03,0.26049198]
[1737019750943,1.33523799,706.36,705.06,1.0595502]
[1737019752042,0.28314174,706.36,704.97,1.0595502]
[1737019752437,0.28314174,706.36,704.98,0.26048568]
[1737019753045,0.28314174,706.36,704.99,1.32004586]
[1737019753247,0.28314174,706.36,705.0,0.26049566]
[1737019754140,0.28314174,706.36,705.01,0.26049566]
[1737019754350,0.28314174,706.36,705.02,0.26049566]
[1737019754548,0.28314174,706.36,705.03,0.26049566]
[1737019754742,0.28314174,706.36,705.04,0.26049566]
[1737019754944,0.28314174,706.36,705.05,0.26049566]
[1737019755146,0.28314174,706.36,705.06,0.26049583]
[1737019755344,0.28314174,706.36,705.07,0.26049583]
[1737019755548,0.28314174,706.36,705.08,0.26049583]
[1737019755748,0.28314174,706.36,705.09,0.26049583]
[1737019755947,0.28314174,706.36,705.03,1.0595502]
[1737019755948,0.28314174,706.36,705.1,0.26049583]
[1737019756148,0.28314174,706.36,705.11,0.26049583]
[1737019756347,0.28314174,706.36,705.12,0.26049583]
[1737019756541,0.28314174,706.36,705.01,1.0595502]
[1737019756745,0.28314174,706.36,705.02,0.26050676]
[1737019757746,0.28314174,706.36,705.03,0.26052392]
[1737019758042,0.28314174,706.36,704.96,0.28370403]
[1737019758043,1.05209625,706.35,705.04,0.26052392]
[1737019758346,0.28314975,706.34,705.05,0.26052392]
[1737019758542,0.28314975,706.34,704.98,1.0595502]
[1737019758742,0.28314975,706.34,704.99,0.2605295]
[1737019758942,1.05209625,706.32,704.99,0.2605295]
[1737019759143,0.28316178,706.31,705.0,0.2605295]
[1737019759346,0.28316178,706.31,705.01,0.2605295]
[1737019759648,0.28316178,706.31,704.96,0.28370403]
[1737019759649,1.33525803,706.31,705.02,0.2605295]
[1737019759847,1.33525803,706.31,704.96,0.28370403]
[1737019760043,1.33525803,706.31,704.97,0.2605316]
[1737019760446,1.33525803,706.31,704.98,0.26053166]
[1737019760647,0.28316178,706.31,704.99,0.26053166]
[1737019760845,0.28316178,706.31,704.96,0.28370403]
[1737019761049,0.28316178,706.31,704.97,0.26053634]
[1737019761248,0.28316178,706.31,704.96,0.28370403]
[1737019762653,0.28316178,706.31,704.97,0.26055143]
[1737019763045,0.28316178,706.31,704.96,0.28370403]
[1737019763751,1.05209625,706.28,704.97,0.2605489]
[1737019763948,0.28317782,706.27,704.97,0.2605489]
[1737019765950,0.28317782,706.27,704.89,1.0595502]
[1737019766152,1.05209625,706.37,704.9,0.26052701]
[1737019767950,1.05209625,706.35,704.9,0.26052701]
[1737019768657,1.05209625,706.35,704.89,1.0595502]
[1737019768852,1.05209625,706.36,704.9,0.26054053]
[1737019769452,1.05209625,706.36,704.91,0.2605477]
[1737019769657,1.05209625,706.36,704.92,0.2605477]
[1737019769858,1.05209625,706.3,704.93,0.2605477]
[1737019770055,1.05209625,706.3,704.94,0.2605477]
[1737019770259,1.05209625,706.3,704.95,0.2605477]
[1737019770459,1.05209625,706.3,704.84,1.0595502]
[1737019770758,1.05209625,706.3,704.85,0.26056217]
[1737019770962,1.05209625,706.34,704.85,0.26056217]
[1737019771258,1.05209625,706.34,704.86,0.26056217]
[1737019771459,1.05209625,706.34,704.8,0.26056217]
[1737019771758,1.05209625,706.34,704.81,0.26056217]
[1737019771959,1.05209625,706.34,704.82,0.26056217]
[1737019772159,1.05209625,706.3,704.83,0.26056217]
[1737019772462,1.05209625,706.3,704.84,0.26056217]
[1737019772769,1.05209625,706.3,704.85,0.26056217]
[1737019772954,1.05209625,706.3,704.77,0.26056217]
[1737019773159,1.05209625,706.33,704.78,0.26056217]
[1737019774156,2.09249347,706.87,704.77,1.0595502]
[1737019774157,1.05209625,706.31,704.77,1.0595502]
[1737019774361,1.05209625,706.31,704.78,0.26056306]
[1737019774859,1.4799012,706.3,704.78,0.26056306]
[1737019777263,1.05209625,706.29,704.79,1.0595502]
[1737019777465,1.05209625,706.29,704.8,0.26056306]
[1737019777760,1.05209625,706.29,704.81,0.26056228]
[1737019777960,1.05209625,706.29,704.82,0.26056228]
[1737019778162,1.05209625,706.25,704.83,0.26056228]
[1737019779364,1.05209625,706.24,704.83,0.26056228]
[1737019779566,1.05209625,706.24,704.84,0.26056228]
[1737019779762,1.05209625,706.24,704.85,0.2605661]
[1737019779960,1.05209625,706.24,704.86,0.2605661]
[1737019780164,1.05209625,706.19,704.87,0.2605661]
[1737019780364,1.05209625,706.19,704.88,0.2605661]
[1737019780561,1.05209625,706.19,704.89,0.2605661]
[1737019780861,1.05209625,706.19,704.9,0.2605661]
[1737019781060,1.05209625,706.19,704.91,0.2605661]
[1737019781260,1.05209625,706.17,704.92,0.2605661]
[1737019781465,1.05209625,706.17,704.93,0.2605661]
[1737019781667,1.05209625,706.17,704.94,0.2605661]
[1737019781870,1.05209625,706.17,704.88,1.0595502]
[1737019782167,1.05209625,706.17,704.89,0.2605641]
[1737019782367,1.05209625,706.16,704.89,0.2605641]
[1737019782566,1.05209625,706.16,704.9,0.26056396]
[1737019782767,1.05209625,706.16,704.91,0.26056396]
[1737019782967,1.05209625,706.16,704.92,0.26056396]
[1737019783168,1.05209625,706.16,704.93,0.26056396]
[1737019783365,1.05209625,706.16,704.45,1.26904779]
[1737019783366,1.05209625,706.16,704.94,0.26056396]
[1737019783563,1.05209625,706.16,704.89,1.0595502]
[1737019783764,1.05209625,706.16,704.9,0.26056161]
[1737019784467,1.05209625,706.16,704.9,1.32011181]
[1737019784672,1.05209625,706.16,704.91,0.26056161]
[1737019785268,1.05209625,706.15,704.92,0.26055951]
[1737019785470,1.05209625,706.15,704.93,0.26055952]
[1737019785873,1.05209625,706.15,704.92,0.26055951]
[1737019786174,1.05209625,706.15,704.93,0.2605448]
[1737019786371,1.4799012,706.3,704.93,0.2605448]
[1737019786372,1.05209625,706.17,704.94,1.0595502]
[1737019786566,1.05209625,706.17,704.95,0.2605448]
[1737019787665,1.05209625,706.18,704.96,1.0595502]
[1737019787865,1.05209625,706.18,704.97,0.2605448]
[1737019788065,1.05209625,706.18,704.98,0.26054772]
[1737019788269,1.05209625,706.18,704.96,1.0595502]
[1737019788568,1.05209625,706.18,704.97,0.26054761]
[1737019788870,1.4799012,706.3,704.97,0.26054761]
[1737019788871,1.05209625,706.16,704.97,1.0595502]
[1737019789771,1.05209625,706.16,704.44,2.15914381]
[1737019789772,1.05209625,706.12,704.96,1.0595502]
[1737019790470,1.4799012,706.3,704.96,1.0595502]
[1737019790471,1.05209625,706.11,704.96,1.0595502]
[1737019790665,1.05209625,706.11,704.97,1.0595502]
[1737019791570,1.05209625,706.09,704.98,1.0595502]
[1737019792573,1.05209625,706.09,705.01,1.0595502]
[1737019793472,1.05209625,706.08,705.01,1.0595502]
[1737019794367,1.05209625,706.07,705.01,1.0595502]
[1737019795570,1.05209625,706.07,704.83,1.05753982]
[1737019795571,1.05209625,706.07,705.02,1.0595502]
[1737019796770,1.05209625,706.08,705.04,1.0595502]
[1737019797467,1.05209625,706.07,705.03,1.0595502]
[1737019800174,1.05209625,706.07,705.05,1.0595502]
[1737019801174,1.05209625,706.08,705.07,1.0595502]
[1737019802175,1.05209625,706.08,704.54,2.15914381]
[1737019802176,1.05209625,706.03,705.04,1.0595502]
[1737019803276,1.05209625,706.04,705.07,1.0595502]
[1737019804079,1.05209625,706.04,704.8,1.05753982]
[1737019804080,1.05209625,706.0,705.05,1.0595502]
[1737019805181,3.31319608,706.48,705.05,1.0595502]
[1737019805182,1.05209625,705.99,705.05,1.0595502]
[1737019806379,1.05209625,705.99,704.52,2.15914381]
[1737019806380,1.05209625,706.03,704.92,1.0595502]
[1737019807382,1.05209625,706.07,704.94,1.0595502]
[1737019809086,1.05209625,706.05,704.89,1.0595502]
[1737019809986,1.05209625,706.11,704.93,1.0595502]
[1737019810986,1.05209625,706.03,704.98,1.0595502]
[1737019811782,1.05209625,706.07,704.97,1.0595502]
[1737019812689,1.05209625,706.07,704.96,1.0595502]
[1737019813790,1.05209625,706.07,704.39,2.15914381]
[1737019813791,1.05209625,706.06,704.97,1.0595502]
[1737019814790,1.05209625,706.03,704.88,1.0595502]
[1737019816794,1.05209625,706.04,704.88,1.0595502]
[1737019817898,1.05209625,706.04,704.86,1.0595502]
[1737019818895,0.28327006,706.04,704.86,1.0595502]
[1737019819695,0.28327006,706.04,704.65,1.05753982]
[1737019819696,1.05209625,706.02,704.85,1.0595502]
[1737019820695,0.28327006,706.04,704.8,1.0595502]
[1737019822897,0.28327006,706.04,704.77,1.0595502]
[1737019824199,1.05209625,706.02,704.67,1.0595502]
[1737019824999,1.05209625,706.02,704.43,1.05753982]
[1737019825000,0.2832821,706.01,704.56,1.0595502]
[1737019826100,0.2832821,706.01,704.57,0.260659]
[1737019826300,0.2832821,706.01,704.57,0.52131859]
[1737019826504,0.2832821,706.01,704.57,0.260659]
[1737019828522,0.2832821,706.01,704.58,0.26066362]
[1737019829002,1.05209625,705.99,704.58,0.26066362]
[1737019829398,1.05209625,705.99,704.55,1.0595502]
[1737019829399,1.05209625,705.99,704.59,0.26066362]
[1737019829599,1.05209625,705.99,704.6,0.26066362]
[1737019829799,1.05209625,705.99,704.61,0.26066362]
[1737019829998,1.05209625,705.99,704.62,0.26066362]
[1737019830195,1.05209625,705.99,704.63,0.26066362]
[1737019830402,1.05209625,705.99,704.55,1.0595502]
[1737019830602,1.05209625,705.99,704.56,0.2606656]
[1737019830803,1.05209625,705.99,704.57,0.2606656]
[1737019831001,1.05209625,705.99,704.54,1.0595502]
[1737019831201,1.05209625,705.99,704.55,0.26066543]
[1737019831901,1.05209625,706.0,704.55,0.26066543]
[1737019832102,1.05209625,706.0,704.53,1.0595502]
[1737019832103,1.05209625,706.0,704.56,0.26066543]
[1737019832302,1.05209625,706.0,704.57,0.26066543]
[1737019832502,1.05209625,706.0,704.58,0.26066543]
[1737019832703,1.05209625,706.0,704.54,0.26066543]
[1737019832903,0.2832821,706.01,704.59,0.26066543]
[1737019833104,0.2832821,706.01,704.55,0.26066543]
[1737019833505,0.2832821,706.01,704.6,0.26066543]
[1737019833701,1.05209625,705.97,704.54,1.0595502]
[1737019833902,1.05209625,705.97,704.55,0.26066619]
[1737019834708,1.48045208,705.99,704.55,0.26066619]
[1737019835006,1.48045208,705.99,704.5,1.0595502]
[1737019835211,1.48045208,705.99,704.51,0.26066702]
[1737019835410,0.28329414,705.98,704.51,0.26066702]
[1737019835805,0.28329414,705.98,704.52,0.26066702]
[1737019836005,0.28329414,705.98,704.44,1.0595502]
[1737019836208,0.28329414,705.98,704.45,0.26066489]
[1737019836804,0.28329414,705.98,704.46,0.26066489]
[1737019837001,0.28329414,705.98,704.47,0.26066489]
[1737019837206,0.28329414,705.98,704.48,0.26066489]
[1737019837405,0.28329414,705.98,704.49,0.26066489]
[1737019837606,0.28329414,705.98,704.06,1.05753982]
[1737019837607,0.28329414,705.98,704.5,0.26066489]
[1737019837806,0.28329414,705.98,704.51,0.26066489]
[1737019838007,0.28329414,705.98,704.45,1.0595502]
[1737019838008,0.28329414,705.98,704.52,0.26066489]
[1737019838208,0.28329414,705.98,704.53,0.26066489]
[1737019838508,0.28329414,705.98,704.54,0.26066489]
[1737019838711,0.28329414,705.98,704.55,0.26066489]
[1737019839009,0.28329414,705.98,704.45,1.0595502]
[1737019839209,0.28329414,705.98,704.46,0.2606684]
[1737019839408,0.28329414,705.98,704.47,0.26067025]
[1737019839602,0.28329414,705.98,704.48,0.26067025]
[1737019839806,0.28329414,705.98,704.49,0.26067025]
[1737019840008,0.28329414,705.98,704.5,0.26067025]
[1737019840208,0.28329414,705.98,704.51,0.26067025]
[1737019840413,0.28329414,705.98,704.52,0.26067025]
[1737019840610,0.28329414,705.98,704.53,0.26067025]
[1737019840809,0.28329414,705.98,704.43,1.0595502]
[1737019841002,0.28329414,705.98,704.44,0.54458394]
[1737019841206,0.28329414,705.98,704.45,0.26067048]
[1737019842910,0.28329414,705.98,704.44,0.28391346]
[1737019843109,0.28329414,705.98,704.45,0.26065967]
[1737019844915,0.28329414,705.98,704.46,0.26066984]
[1737019845116,0.28329414,705.98,704.44,0.28391346]
[1737019845416,0.28329414,705.98,704.45,0.26066984]
[1737019847815,0.28329414,705.98,704.46,0.26066966]
[1737019848015,0.28329414,705.98,704.47,0.26066966]
[1737019848214,0.28329414,705.98,704.48,0.26066966]
[1737019848519,0.28329414,705.98,704.45,1.0595502]
[1737019848712,0.28329414,705.98,704.46,0.26066621]
[1737019849414,0.28329414,705.98,704.47,1.0595502]
[1737019849615,0.28329414,705.98,704.48,0.26066621]
[1737019850214,0.28329414,705.98,704.49,1.0595502]
[1737019850517,0.28329414,705.98,704.5,0.26066065]
[1737019851117,0.28329414,705.98,704.5,1.0595502]
[1737019851414,0.28329414,705.98,704.51,0.26066508]
[1737019851811,0.28329414,705.98,704.53,1.0595502]
[1737019852817,0.28329414,705.98,704.54,0.26066125]
[1737019853017,0.28329414,705.98,704.54,1.32021145]
[1737019853215,0.28329414,705.98,704.55,0.26066347]
[1737019853411,0.28329414,705.98,704.55,0.52132686]
[1737019853812,1.05209625,705.86,704.65,1.0595502]
[1737019854914,1.33539039,705.98,704.58,1.0595502]
[1737019855917,1.33539039,705.98,704.55,0.26066347]
[1737019855918,1.05209625,705.97,704.61,1.0595502]
[1737019856117,0.28330217,705.96,704.61,1.0595502]
[1737019856916,1.05209625,705.92,704.66,1.0595502]
[1737019857118,0.28332223,705.91,704.66,1.0595502]
[1737019858015,1.33541848,705.91,704.66,1.0595502]
[1737019859020,1.05209625,705.88,704.69,1.0595502]
[1737019859214,1.33543052,705.88,704.69,1.0595502]
[1737019860219,1.33543052,705.88,704.71,1.0595502]
[1737019861015,1.33543052,705.88,704.44,0.28391346]
[1737019861016,0.28333427,705.88,704.77,1.0595502]
[1737019862321,0.28333427,705.88,704.8,1.0595502]
[1737019863321,0.28333427,705.88,704.85,1.0595502]
[1737019864823,0.28333427,705.88,704.45,0.72288609]
[1737019864824,0.28333427,705.88,704.72,1.0595502]
[1737019865923,1.33543052,705.88,704.65,1.0595502]
[1737019867322,1.33543052,705.88,704.6,1.0595502]
[1737019867323,1.05209625,705.83,704.6,1.0595502]
[1737019868121,1.05209625,705.84,704.59,1.0595502]
[1737019869623,1.05209625,705.84,704.6,0.26066878]
[1737019870427,0.28333427,705.88,704.64,1.0595502]
[1737019873436,1.05209625,705.86,704.61,1.0595502]
[1737019873631,1.05209625,705.86,704.62,0.26067977]
[1737019874035,0.28334632,705.85,704.62,0.26067977]
[1737019874435,0.28334632,705.85,704.65,1.0595502]
[1737019874436,1.05209625,705.78,704.65,1.0595502]
[1737019875036,1.05209625,705.78,704.64,1.0595502]
[1737019877338,1.33544257,705.85,704.62,1.0595502]
[1737019878342,0.28334632,705.85,704.51,1.0595502]
[1737019879138,0.28334632,705.85,704.49,1.0595502]
[1737019880138,0.28334632,705.85,704.5,1.0595502]
[1737019881144,0.28334632,705.85,704.48,1.0595502]
[1737019881942,0.28334632,705.85,704.47,1.0595502]
[1737019882842,0.28334632,705.85,704.45,1.0595502]
[1737019884140,0.28334632,705.85,704.44,0.28391346]
[1737019884843,1.48072504,705.84,704.44,0.28391346]
[1737019886141,0.28335836,705.82,704.44,0.28391346]
[1737019887648,1.05209625,705.77,704.44,0.28391346]
[1737019888447,0.28335836,705.82,704.44,0.28391346]
[1737019888448,1.05209625,705.66,704.44,0.28391346]
[1737019888840,1.05209625,705.66,704.24,1.0595502]
[1737019889044,1.05209625,705.66,704.25,0.26080694]
[1737019889239,1.05209625,705.65,704.25,0.26080694]
[1737019889443,1.05209625,705.65,704.17,0.26080694]
[1737019889641,1.05209625,705.65,704.18,0.26080694]
[1737019889846,1.05209625,705.65,704.19,0.26080694]
[1737019890045,1.05209625,705.65,704.2,0.26080694]
[1737019890247,1.05209625,705.64,704.17,0.26080694]
[1737019890547,1.05209625,705.64,704.08,1.0595502]
[1737019890743,1.05209625,705.64,704.09,0.2608437]
[1737019890941,1.05209625,705.64,704.08,1.0595502]
[1737019891343,1.05209625,705.67,703.91,1.0595502]
[1737019891942,1.05209625,705.67,703.92,0.26091056]
[1737019892249,1.05209625,705.7,703.92,0.26091056]
[1737019892452,1.05209625,705.7,703.63,1.0595502]
[1737019893551,1.05209625,705.7,703.64,0.26092481]
[1737019893752,1.05209625,705.54,703.64,0.26092481]
[1737019893945,1.05209625,705.54,703.54,0.26092481]
[1737019894852,1.05209625,705.41,703.54,0.26092481]
[1737019895250,1.05209625,705.41,703.33,1.0595502]
[1737019895451,1.05209625,705.41,703.34,0.28435749]
[1737019896047,1.05209625,705.6,703.34,0.28435749]
[1737019897352,1.05209625,705.7,703.34,0.28435749]
[1737019898759,1.05209625,705.75,703.34,0.28435749]
[1737019898949,0.28343466,705.63,703.34,0.28435749]
[1737019905561,0.28343466,705.63,703.35,0.26095233]
[1737019906659,1.48174957,705.62,703.35,0.26095233]
[1737019908663,1.48174957,705.62,703.36,0.26097657]
[1737019908863,1.48174957,705.62,703.36,0.52195406]
[1737019909061,1.48174957,705.62,703.37,0.26097749]
[1737019910563,1.48174957,705.62,703.38,0.26097749]
[1737019910862,1.48174957,705.62,703.39,0.26092016]
[1737019911064,1.48174957,705.62,703.4,0.26092016]
[1737019911466,1.48174957,705.62,703.37,0.60456315]
[1737019911661,1.48174957,705.62,703.41,0.26091735]
[1737019911963,1.48174957,705.62,703.38,0.26091735]
[1737019912159,1.48174957,705.62,703.42,0.26091735]
[1737019912360,1.48174957,705.62,703.39,0.26091735]
[1737019912565,1.48174957,705.62,703.37,0.60455707]
[1737019912566,1.48174957,705.62,703.43,0.26091735]
[1737019912766,1.48174957,705.62,703.44,0.26091735]
[1737019912966,1.48174957,705.62,703.37,0.86547442]
[1737019913167,1.48174957,705.62,703.37,0.26091735]
[1737019913367,1.48174957,705.62,703.38,0.86547442]
[1737019913562,1.48174957,705.62,703.37,0.60455707]
[1737019913767,1.48174957,705.62,703.39,0.26091735]
[1737019913966,1.48174957,705.62,703.4,0.26091735]
[1737019914167,1.48174957,705.62,703.41,0.26091735]
[1737019914364,1.48174957,705.62,703.42,0.26091799]
[1737019914566,1.48174957,705.62,703.37,0.86545907]
[1737019914762,1.48174957,705.62,703.38,0.26091799]
[1737019914965,1.48174957,705.62,703.39,0.26091799]
[1737019915167,1.48174957,705.62,703.4,0.26091799]
[1737019915364,1.48174957,705.62,703.37,0.26091799]
[1737019915569,1.48174957,705.62,703.38,0.26091799]
[1737019915766,1.48174957,705.62,703.36,0.26097657]
[1737019915767,1.48174957,705.62,703.39,0.26091799]
[1737019915966,1.48174957,705.62,703.37,0.86545641]
[1737019916166,1.48174957,705.62,703.36,0.26097657]
[1737019916370,1.48174957,705.62,703.38,0.60453312]
[1737019916566,1.48174957,705.62,703.39,0.26090552]
[1737019916770,1.48174957,705.62,703.4,0.26090552]
[1737019916971,1.48174957,705.62,703.34,0.28435749]
[1737019916972,1.48174957,705.62,703.46,1.0595502]
[1737019917172,1.48174957,705.62,703.47,0.86544162]
[1737019917474,1.48174957,705.62,703.48,0.26090653]
[1737019917676,1.48174957,705.62,703.49,0.26090653]
[1737019917873,1.48174957,705.62,703.48,0.60454576]
[1737019918169,1.48174957,705.62,703.57,1.0595502]
[1737019918376,1.48174957,705.62,703.58,0.26091176]
[1737019919771,1.48174957,705.62,703.59,0.26091176]
[1737019920075,1.48174957,705.62,703.56,1.0595502]
[1737019920275,1.48174957,705.62,703.6,0.26095335]
[1737019920476,1.48174957,705.62,703.57,0.54521788]
[1737019920674,1.48174957,705.62,703.61,0.26095335]
[1737019920869,1.48174957,705.62,703.58,0.26095335]
[1737019921075,1.48174957,705.62,703.62,0.26095335]
[1737019921276,1.48174957,705.62,703.63,0.26095335]
[1737019921574,1.48174957,705.62,703.64,0.26095335]
[1737019921775,1.48174957,705.62,703.58,0.26095335]
[1737019921971,1.48174957,705.62,703.59,0.26096413]
[1737019922169,1.48174957,705.62,703.58,0.26096413]
[1737019922375,1.48174957,705.62,703.6,0.26096413]
[1737019922577,1.05209625,705.59,703.59,1.32051433]
[1737019922773,1.05209625,705.59,703.6,0.26096413]
[1737019923477,1.05209625,705.54,703.65,1.0595502]
[1737019923676,1.05209625,705.54,703.66,0.5451923]
[1737019923873,1.05209625,705.54,703.67,0.26096413]
[1737019924078,0.28347885,705.52,703.67,0.26096413]
[1737019924379,1.05209625,705.48,703.68,1.0595502]
[1737019924578,1.05209625,705.48,703.69,0.26096413]